fUST/lending_fUST_20250914
["ID","MTS","AMOUNT","RATE_DAILY","PERIOD"]
[385337233,1757784654523,-480.0,0.00024931,3]
[385337234,1757784654532,-480.0,0.00024931,3]
[385337235,1757784654541,-480.0,0.00024931,3]
[385337236,1757784654551,-480.0,0.00024931,3]
[385337237,1757784654560,-480.0,0.00024931,3]
[385337238,1757784654570,-480.0,0.00024931,3]
[385337239,1757784654580,-480.0,0.00024931,3]
[385337240,1757784654590,-480.0,0.00024931,3]
[385337241,1757784654600,-480.0,0.00024931,3]
[385337242,1757784654611,-480.0,0.00024931,3]
[385337243,1757784654621,-480.0,0.00024931,3]
[385337244,1757784654632,-480.0,0.00024931,3]
[385337245,1757784654642,-480.0,0.00024931,3]
[385337246,1757784654651,-480.0,0.00024931,3]
[385337247,1757784654662,-480.0,0.00024931,3]
[385337248,1757784654672,-480.0,0.00024931,3]
[385337249,1757784654682,-480.0,0.00024931,3]
[385337250,1757784654692,-500.0,0.00024931,3]
[385337251,1757784654702,-480.0,0.00024931,3]
[385337252,1757784654711,-481.63209188,0.00024931,3]
[385337253,1757784654721,-480.0,0.00024931,3]
[385337254,1757784654730,-480.0,0.00024931,3]
[385337255,1757784654739,-480.0,0.00024931,3]
[385337256,1757784654749,-480.0,0.00024931,3]
[385337257,1757784654758,-480.0,0.00024931,3]
[385337258,1757784654768,-480.0,0.00024931,3]
[385337259,1757784654777,-480.0,0.00024931,3]
[385337260,1757784654787,-480.0,0.00024931,3]
[385337261,1757784654797,-375.29640062,0.00024931,3]
[385337262,1757784654806,-480.0,0.00024931,3]
[385337263,1757784654816,-480.0,0.00024931,3]
[385337264,1757784654827,-541.67361575,0.00024931,3]
[385337265,1757784654836,-480.0,0.00024931,3]
[385337266,1757784654846,-480.0,0.00024931,3]
[385337267,1757784654856,-400.37627108,0.00024931,3]
[385337268,1757784654866,-480.0,0.00024931,3]
[385337269,1757784654876,-480.0,0.00024931,3]
[385337270,1757784654886,-480.0,0.00024931,3]
[385337271,1757784654896,-1194.44,0.00024931,3]
[385337272,1757784654908,-312.10125981,0.00024931,3]
[385337273,1757784654918,-480.0,0.00024931,3]
[385337274,1757784654927,-480.0,0.00024931,3]
[385337275,1757784654939,-480.0,0.00024931,3]
[385337276,1757784654949,-480.0,0.00024931,3]
[385337277,1757784654959,-806.61,0.00024931,3]
[385337278,1757784654968,-963.48,0.00024931,3]
[385337279,1757784654977,-480.0,0.00024931,3]
[385337280,1757784654987,-480.0,0.00024931,3]
[385337281,1757784654997,-490.14471729,0.00024931,3]
[385337282,1757784655007,-480.0,0.00024931,3]
[385337283,1757784655016,-480.0,0.00024931,3]
[385337284,1757784655026,-587.53,0.00024931,3]
[385337285,1757784655035,-617.97016189,0.00024931,3]
[385337286,1757784655046,-480.0,0.00024931,3]
[385337287,1757784655055,-480.0,0.00024931,3]
[385337288,1757784655065,-480.0,0.00024931,3]
[385337289,1757784655076,-480.60398165,0.00024931,3]
[385337290,1757784655086,-480.0,0.00024931,3]
[385337291,1757784655095,-1474.24,0.00024931,3]
[385337292,1757784655105,-480.0,0.00024931,3]
[385337293,1757784655114,-784.66,0.00024931,3]
[385337294,1757784655124,-480.0,0.00024931,3]
[385337295,1757784655133,-480.0,0.00024931,3]
[385337296,1757784655143,-480.0,0.00024931,3]
[385337297,1757784655153,-480.0,0.00024931,3]
[385337298,1757784655162,-480.0,0.00024931,3]
[385337299,1757784655171,-906.0,0.00024931,3]
[385337300,1757784655181,-480.0,0.00024931,3]
[385337301,1757784655190,-480.0,0.00024931,3]
[385337302,1757784655200,-766.19,0.00024931,3]
[385337303,1757784655210,-480.0,0.00024931,3]
[385337304,1757784655219,-480.0,0.00024931,3]
[385337305,1757784655228,-2482.55,0.00024931,3]
[385337306,1757784655238,-5735.2,0.00024931,3]
[385337307,1757784655247,-529.58901423,0.00024931,3]
[385337308,1757784655257,-480.0,0.00024931,3]
[385337309,1757784655266,-480.0,0.00024931,3]
[385337310,1757784655275,-480.0,0.00024931,3]
[385337311,1757784655285,-480.0,0.00024931,3]
[385337312,1757784655294,-976.23,0.00024931,3]
[385337313,1757784655303,-480.0,0.00024931,3]
[385337314,1757784655312,-480.0,0.00024931,3]
[385337315,1757784655322,-480.0,0.00024931,3]
[385337316,1757784655331,-801.98,0.00024931,3]
[385337317,1757784655340,-480.0,0.00024931,3]
[385337318,1757784655350,-480.0,0.00024931,3]
[385337319,1757784655360,-480.0,0.00024931,3]
[385337320,1757784655369,-3181.48,0.00024931,3]
[385337321,1757784655378,-480.0,0.00024931,3]
[385337322,1757784655387,-480.0,0.00024931,3]
[385337323,1757784655396,-481.41,0.00024931,3]
[385337324,1757784655405,-480.0,0.00024931,3]
[385337325,1757784655415,-525.10456097,0.00024931,3]
[385337326,1757784655430,-484.60926165,0.00024931,3]
[385337327,1757784655440,-480.0,0.00024931,3]
[385337328,1757784655450,-3209.76,0.00024931,3]
[385337329,1757784655460,-480.0,0.00024931,3]
[385337330,1757784655471,-3616.26,0.00024931,3]
[385337331,1757784655481,-749.82,0.00024931,3]
[385337332,1757784655491,-985.55,0.00024931,3]
[385337333,1757784655501,-1529.56,0.00024931,3]
[385337334,1757784655512,-480.0,0.00024931,3]
[385337335,1757784655521,-480.0,0.00024931,3]
[385337336,1757784655531,-480.0,0.00024931,3]
[385337337,1757784655541,-745.92,0.00024931,3]
[385337338,1757784655552,-1109.03,0.00024931,3]
[385337339,1757784655563,-480.0,0.00024931,3]
[385337340,1757784655574,-1259.35,0.00024931,3]
[385337341,1757784655584,-480.0,0.00024931,3]
[385337342,1757784655593,-480.0,0.00024931,3]
[385337343,1757784655603,-480.0,0.00024931,3]
[385337344,1757784655612,-480.0,0.00024931,3]
[385337345,1757784655622,-1997.09,0.00024931,3]
[385337346,1757784655631,-1039.68,0.00024931,3]
[385337347,1757784655641,-480.0,0.00024931,3]
[385337348,1757784655651,-480.0,0.00024931,3]
[385337349,1757784655660,-480.0,0.00024931,3]
[385337350,1757784655669,-914.34,0.00024931,3]
[385337351,1757784655679,-480.0,0.00024931,3]
[385337352,1757784655688,-918.15,0.00024931,3]
[385337353,1757784655697,-480.0,0.00024931,3]
[385337354,1757784655707,-480.0,0.00024931,3]
[385337355,1757784655717,-480.0,0.00024931,3]
[385337356,1757784655726,-480.0,0.00024931,3]
[385337357,1757784655735,-691.66,0.00024931,3]
[385337358,1757784655744,-782.57,0.00024931,3]
[385337359,1757784655754,-480.0,0.00024931,3]
[385337360,1757784655764,-1692.57,0.00024931,3]
[385337361,1757784655772,-480.0,0.00024931,3]
[385337362,1757784655781,-480.0,0.00024931,3]
[385337363,1757784655791,-480.0,0.00024931,3]
[385337364,1757784655799,-491.13,0.00024931,3]
[385337365,1757784655808,-480.0,0.00024931,3]
[385337366,1757784655817,-483.16201664,0.00024931,3]
[385337367,1757784655827,-348.56449387,0.00024931,3]
[385337368,1757784655836,-480.0,0.00024931,3]
[385337369,1757784655846,-2928.66,0.00024931,3]
[385337370,1757784655855,-480.0,0.00024931,3]
[385337371,1757784655865,-480.0,0.00024931,3]
[385337372,1757784655875,-480.0,0.00024931,3]
[385337373,1757784655885,-480.0,0.00024931,3]
[385337374,1757784655894,-480.0,0.00024931,3]
[385337375,1757784655907,-480.0,0.00024931,3]
[385337376,1757784655917,-739.76,0.00024931,3]
[385337377,1757784655926,-480.0,0.00024931,3]
[385337378,1757784655936,-703.37,0.00024931,3]
[385337379,1757784655945,-480.0,0.00024931,3]
[385337380,1757784655954,-480.0,0.00024931,3]
[385337381,1757784655963,-734.71,0.00024931,3]
[385337382,1757784655973,-2535.32,0.00024931,3]
[385337383,1757784655983,-12427.82,0.00024931,3]
[385337384,1757784655992,-203.26913678,0.00024931,3]
[385337385,1757784656002,-480.0,0.00024931,3]
[385337386,1757784656012,-480.0,0.00024931,3]
[385337387,1757784656022,-480.0,0.00024931,3]
[385337388,1757784656186,-8887.01,0.00024931,3]
[385337389,1757784656197,-883.08,0.00024931,3]
[385337390,1757784656206,-480.0,0.00024931,3]
[385337391,1757784656216,-776.87,0.00024931,3]
[385337392,1757784656225,-480.0,0.00024931,3]
[385337393,1757784656235,-641.35,0.00024931,3]
[385337394,1757784656244,-527.95253812,0.00024931,3]
[385337395,1757784656253,-1110.66,0.00024931,3]
[385337396,1757784656262,-480.0,0.00024931,3]
[385337397,1757784656272,-5775.0,0.00024931,3]
[385337398,1757784656281,-480.0,0.00024931,3]
[385337399,1757784656290,-999.54,0.00024931,3]
[385337400,1757784656299,-480.0,0.00024931,3]
[385337401,1757784656308,-2448.94,0.00024931,3]
[385337402,1757784656318,-480.0,0.00024931,3]
[385337403,1757784656328,-480.0,0.00024931,3]
[385337404,1757784656337,-595.92,0.00024931,3]
[385337405,1757784656346,-711.92,0.00024931,3]
[385337406,1757784656355,-480.0,0.00024931,3]
[385337407,1757784656364,-2079.15,0.00024931,3]
[385337408,1757784656373,-716.9,0.00024931,3]
[385337409,1757784656383,-680.55,0.00024931,3]
[385337410,1757784656392,-480.0,0.00024931,3]
[385337411,1757784656401,-493.50257071,0.00024931,3]
[385337412,1757784656410,-2057.52,0.00024931,3]
[385337413,1757784656419,-486.5547439,0.00024931,3]
[385337414,1757784656428,-509.1,0.00024931,3]
[385337415,1757784656437,-1722.0,0.00024931,3]
[385337416,1757784656447,-480.0,0.00024931,3]
[385337417,1757784656456,-1005.55,0.00024931,3]
[385337418,1757784656465,-480.0,0.00024931,3]
[385337419,1757784656474,-480.0,0.00024931,3]
[385337420,1757784656483,-480.0,0.00024931,3]
[385337421,1757784656493,-728.93,0.00024931,3]
[385337422,1757784656502,-480.0,0.00024931,3]
[385337423,1757784656511,-480.0,0.00024931,3]
[385337424,1757784656522,-480.0,0.00024931,3]
[385337425,1757784656531,-1072.93,0.00024931,3]
[385337426,1757784656540,-480.0,0.00024931,3]
[385337427,1757784656549,-480.0,0.00024931,3]
[385337428,1757784656558,-480.0,0.00024931,3]
[385337429,1757784656567,-872.34,0.00024931,3]
[385337430,1757784656577,-480.0,0.00024931,3]
[385337431,1757784656587,-398.62584068,0.00024931,3]
[385337432,1757784656595,-480.0,0.00024931,3]
[385337433,1757784656604,-466.22389191,0.00024931,3]
[385337434,1757784656613,-1840.85,0.00024931,3]
[385337435,1757784656622,-482.77135402,0.00024931,3]
[385337436,1757784656631,-480.0,0.00024931,3]
[385337437,1757784656641,-480.0,0.00024931,3]
[385337438,1757784656650,-480.0,0.00024931,3]
[385337439,1757784656659,-480.0,0.00024931,3]
[385337440,1757784656668,-480.0,0.00024931,3]
[385337441,1757784656679,-480.0,0.00024931,3]
[385337442,1757784656688,-480.0,0.00024931,3]
[385337443,1757784656697,-480.0,0.00024931,3]
[385337444,1757784656707,-1340.83,0.00024931,3]
[385337445,1757784656716,-480.0,0.00024931,3]
[385337446,1757784656727,-480.0,0.00024931,3]
[385337447,1757784656735,-1088.54,0.00024931,3]
[385337448,1757784656745,-480.0,0.00024931,3]
[385337449,1757784656754,-480.0,0.00024931,3]
[385337450,1757784656763,-480.0,0.00024931,3]
[385337451,1757784656773,-797.91,0.00024931,3]
[385337452,1757784656783,-500.0,0.00024932,2]
[385337453,1757784656793,-160.0,0.00024967,2]
[385337454,1757784656803,-4402.86835635,0.00024968,2]
[385337455,1757784656813,-500.0,0.00024973,2]
[385337456,1757784656823,-151.34575888,0.00024973,2]
[385337457,1757784656834,-150000.0,0.00024999,2]
[385337458,1757784656845,-106740.10679801,0.00024999,2]
[385337459,1757784656858,-161.0,0.00025,3]
[385337460,1757784656868,-166.0,0.00025,3]
[385337461,1757784656877,-161.0,0.00025,3]
[385337462,1757784656887,-166.0,0.00025,3]
[385337463,1757784656899,-161.0,0.00025,3]
[385337464,1757784656911,-161.0,0.00025,3]
[385337465,1757784656920,-161.0,0.00025,3]
[385337466,1757784656929,-161.0,0.00025,3]
[385337467,1757784656939,-161.0,0.00025,3]
[385337468,1757784656948,-157.88119504,0.00025,3]
[385337469,1757784656958,-156.0,0.00025,3]
[385337470,1757784656967,-156.0,0.00025,3]
[385337471,1757784656977,-156.0,0.00025,3]
[385337472,1757784656987,-156.0,0.00025,3]
[385337473,1757784656996,-160.99820564,0.00025,3]
[385337474,1757784657005,-151.0,0.00025,3]
[385337475,1757784657015,-151.0,0.00025,3]
[385337476,1757784657023,-154.24264085,0.00025,3]
[385337477,1757784657032,-328.0,0.00025,3]
[385337478,1757784657041,-328.0,0.00025,3]
[385337479,1757784657051,-328.0,0.00025,3]
[385337480,1757784657060,-328.0,0.00025,3]
[385337481,1757784657069,-328.0,0.00025,3]
[385337482,1757784657079,-328.0,0.00025,3]
[385337483,1757784657088,-328.0,0.00025,3]
[385337484,1757784657097,-328.0,0.00025,3]
[385337485,1757784657106,-328.0,0.00025,3]
[385337486,1757784657115,-328.0,0.00025,3]
[385337487,1757784657125,-328.0,0.00025,3]
[385337488,1757784657134,-328.0,0.00025,3]
[385337489,1757784657144,-328.0,0.00025,3]
[385337490,1757784657152,-328.0,0.00025,3]
[385337491,1757784657162,-328.0,0.00025,3]
[385337492,1757784657171,-328.0,0.00025,3]
[385337493,1757784657180,-328.0,0.00025,3]
[385337494,1757784657189,-328.0,0.00025,3]
[385337495,1757784657198,-328.0,0.00025,3]
[385337496,1757784657208,-328.0,0.00025,3]
[385337497,1757784657218,-328.0,0.00025,3]
[385337498,1757784657228,-328.0,0.00025,3]
[385337499,1757784657237,-328.0,0.00025,3]
[385337500,1757784657246,-328.0,0.00025,3]
[385337501,1757784657256,-328.0,0.00025,3]
[385337502,1757784657265,-328.0,0.00025,3]
[385337503,1757784657274,-328.0,0.00025,3]
[385337504,1757784657283,-328.0,0.00025,3]
[385337505,1757784657295,-328.0,0.00025,3]
[385337506,1757784657305,-328.0,0.00025,3]
[385337507,1757784657314,-328.0,0.00025,3]
[385337508,1757784657323,-328.0,0.00025,3]
[385337509,1757784657333,-328.0,0.00025,3]
[385337510,1757784657342,-328.0,0.00025,3]
[385337511,1757784657351,-328.0,0.00025,3]
[385337512,1757784657360,-328.0,0.00025,3]
[385337513,1757784657369,-328.0,0.00025,3]
[385337514,1757784657378,-328.0,0.00025,3]
[385337515,1757784657388,-328.0,0.00025,3]
[385337516,1757784657398,-328.0,0.00025,3]
[385337517,1757784657409,-328.0,0.00025,3]
[385337518,1757784657418,-328.0,0.00025,3]
[385337519,1757784657428,-328.0,0.00025,3]
[385337520,1757784657437,-328.0,0.00025,3]
[385337521,1757784657446,-328.0,0.00025,3]
[385337522,1757784657457,-328.0,0.00025,3]
[385337523,1757784657466,-328.0,0.00025,3]
[385337524,1757784657475,-328.0,0.00025,3]
[385337525,1757784657484,-328.0,0.00025,3]
[385337526,1757784657494,-328.0,0.00025,3]
[385337527,1757784657503,-328.0,0.00025,3]
[385337528,1757784657513,-328.0,0.00025,3]
[385337529,1757784657522,-328.0,0.00025,3]
[385337530,1757784657532,-328.0,0.00025,3]
[385337531,1757784657541,-328.0,0.00025,3]
[385337532,1757784657551,-328.0,0.00025,3]
[385337533,1757784657560,-328.0,0.00025,3]
[385337534,1757784657570,-328.0,0.00025,3]
[385337535,1757784657579,-328.0,0.00025,3]
[385337536,1757784657589,-328.0,0.00025,3]
[385337537,1757784657598,-386.41396278,0.00025,3]
[385337538,1757784657607,-5300.0,0.00025,30]
[385337539,1757784657616,-151.0,0.00025,14]
[385337540,1757784657626,-151.0,0.00025,8]
[385337541,1757784657635,-1092.9,0.00025,7]
[385337542,1757784657644,-976.0,0.00025022,2]
[385337543,1757784657654,-2156.0,0.00025022,2]
[385337544,1757784657663,-634.0,0.00025022,2]
[385337545,1757784657673,-409.0,0.00025022,2]
[385337546,1757784657682,-200.0,0.0002506,12]
[385337547,1757784657692,-500.0,0.00025079,2]
[385337548,1757784657701,-151.0,0.000251,18]
[385337549,1757784657710,-151.0,0.000251,15]
[385337550,1757784657720,-4153.12121853,0.00025105,2]
[385337551,1757784657729,-168.0,0.0002511,2]
[385337552,1757784657738,-200.0,0.00025113,2]
[385337553,1757784657747,-189.0,0.00025149,20]
[385337554,1757784657757,-164.89100626,0.00025204,2]
[385337555,1757784657766,-500.0,0.00025205,5]
[385337556,1757784657775,-500.0,0.00025205,5]
[385337557,1757784657785,-500.0,0.00025205,5]
[385337558,1757784657794,-582.0,0.00025205,3]
[385337559,1757784657803,-186.0,0.00025205,3]
[385337560,1757784657812,-157.0,0.00025205,3]
[385337561,1757784657821,-529.0,0.00025205,3]
[385337562,1757784657832,-500.0,0.00025205,3]
[385337563,1757784657841,-480.0,0.00025205,3]
[385337564,1757784657852,-657.11,0.00025205,3]
[385337565,1757784657862,-588.61,0.00025205,3]
[385337566,1757784657871,-480.0,0.00025205,3]
[385337567,1757784657881,-480.0,0.00025205,3]
[385337568,1757784657891,-480.0,0.00025205,3]
[385337569,1757784657904,-480.0,0.00025205,3]
[385337570,1757784657912,-511.25588291,0.00025205,3]
[385337571,1757784657922,-480.0,0.00025205,3]
[385337572,1757784657931,-480.0,0.00025205,3]
[385337573,1757784657940,-480.0,0.00025205,3]
[385337574,1757784657949,-480.0,0.00025205,3]
[385337575,1757784657958,-480.0,0.00025205,3]
[385337576,1757784657967,-480.0,0.00025205,3]
[385337577,1757784657977,-489.86967818,0.00025205,3]
[385337578,1757784657987,-480.0,0.00025205,3]
[385337579,1757784657996,-480.0,0.00025205,3]
[385337580,1757784658005,-522.82,0.00025205,3]
[385337581,1757784658015,-480.0,0.00025205,3]
[385337582,1757784658026,-483.51327461,0.00025205,3]
[385337583,1757784658036,-480.0,0.00025205,3]
[385337584,1757784658045,-480.0,0.00025205,3]
[385337585,1757784658055,-480.0,0.00025205,3]
[385337586,1757784658064,-480.0,0.00025205,3]
[385337587,1757784658073,-480.0,0.00025205,3]
[385337588,1757784658082,-480.0,0.00025205,3]
[385337589,1757784658092,-480.0,0.00025205,3]
[385337590,1757784658101,-480.0,0.00025205,3]
[385337591,1757784658111,-480.0,0.00025205,3]
[385337592,1757784658120,-480.0,0.00025205,3]
[385337593,1757784658130,-480.0,0.00025205,3]
[385337594,1757784658139,-480.0,0.00025205,3]
[385337595,1757784658154,-328.03690357,0.00025205,3]
[385337596,1757784658163,-480.0,0.00025205,3]
[385337597,1757784658172,-480.0,0.00025205,3]
[385337598,1757784658182,-480.0,0.00025205,3]
[385337599,1757784658191,-480.0,0.00025205,3]
[385337600,1757784658200,-480.0,0.00025205,3]
[385337601,1757784658209,-480.0,0.00025205,3]
[385337602,1757784658219,-480.0,0.00025205,3]
[385337603,1757784658228,-705.76,0.00025205,3]
[385337604,1757784658238,-480.0,0.00025205,3]
[385337605,1757784658247,-480.0,0.00025205,3]
[385337606,1757784658256,-481.49182011,0.00025205,3]
[385337607,1757784658266,-480.000001,0.00025205,3]
[385337608,1757784658275,-480.0,0.00025205,3]
[385337609,1757784658284,-495.99,0.00025205,3]
[385337610,1757784658294,-480.0,0.00025205,3]
[385337611,1757784658303,-178.27367886,0.00025205,3]
[385337612,1757784658313,-602.39,0.00025205,3]
[385337613,1757784658322,-406.93,0.00025205,3]
[385337614,1757784658332,-480.0,0.00025205,3]
[385337615,1757784658342,-480.0,0.00025205,3]
[385337616,1757784658351,-174.07556549,0.00025205,3]
[385337617,1757784658362,-480.0,0.00025205,3]
[385337618,1757784658373,-480.0,0.00025205,3]
[385337619,1757784658382,-446.03132773,0.00025205,3]
[385337620,1757784658391,-480.0,0.00025205,3]
[385337621,1757784658401,-480.0,0.00025205,3]
[385337622,1757784658411,-480.0,0.00025205,3]
[385337623,1757784658421,-480.0,0.00025205,3]
[385337624,1757784658431,-480.0,0.00025205,3]
[385337625,1757784658440,-480.0,0.00025205,3]
[385337626,1757784658450,-480.0,0.00025205,3]
[385337627,1757784658460,-480.0,0.00025205,3]
[385337628,1757784658470,-480.0,0.00025205,3]
[385337629,1757784658480,-480.0,0.00025205,3]
[385337630,1757784658489,-480.0,0.00025205,3]
[385337631,1757784658499,-480.0,0.00025205,3]
[385337632,1757784658509,-480.0,0.00025205,3]
[385337633,1757784658518,-232.74332234,0.00025205,3]
[385337634,1757784658528,-480.0,0.00025205,3]
[385337635,1757784658538,-480.0,0.00025205,3]
[385337636,1757784658547,-480.0,0.00025205,3]
[385337637,1757784658556,-480.0,0.00025205,3]
[385337638,1757784658565,-339.07187462,0.00025205,3]
[385337639,1757784658575,-480.0,0.00025205,3]
[385337640,1757784658585,-480.0,0.00025205,3]
[385337641,1757784658594,-480.0,0.00025205,3]
[385337642,1757784658603,-480.0,0.00025205,3]
[385337643,1757784658612,-480.0,0.00025205,3]
[385337644,1757784658622,-480.0,0.00025205,3]
[385337645,1757784658631,-480.0,0.00025205,3]
[385337646,1757784658640,-362.3505503,0.00025205,3]
[385337647,1757784658650,-480.0,0.00025205,3]
[385337648,1757784658659,-480.0,0.00025205,3]
[385337649,1757784658669,-238.33,0.00025205,3]
[385337650,1757784658679,-480.0,0.00025205,3]
[385337651,1757784658688,-480.0,0.00025205,3]
[385337652,1757784658697,-480.0,0.00025205,3]
[385337653,1757784658707,-1238.97,0.00025205,3]
[385337654,1757784658716,-480.0,0.00025205,3]
[385337655,1757784658726,-480.0,0.00025205,3]
[385337656,1757784658736,-480.0,0.00025205,3]
[385337657,1757784658746,-572.86,0.00025205,3]
[385337658,1757784658756,-480.0,0.00025205,3]
[385337659,1757784658766,-480.0,0.00025205,3]
[385337660,1757784658777,-480.0,0.00025205,3]
[385337661,1757784658787,-909.21,0.00025205,3]
[385337662,1757784658798,-533.54322405,0.00025205,3]
[385337663,1757784658808,-480.0,0.00025205,3]
[385337664,1757784658818,-750.5,0.00025205,3]
[385337665,1757784658829,-1047.05,0.00025205,3]
[385337666,1757784658839,-480.0,0.00025205,3]
[385337667,1757784658849,-480.0,0.00025205,3]
[385337668,1757784658859,-480.0,0.00025205,3]
[385337669,1757784658870,-666.36,0.00025205,3]
[385337670,1757784658880,-480.0,0.00025205,3]
[385337671,1757784658890,-863.23,0.00025205,3]
[385337672,1757784658902,-480.0,0.00025205,3]
[385337673,1757784658912,-480.0,0.00025205,3]
[385337674,1757784658922,-480.0,0.00025205,3]
[385337675,1757784658932,-480.0,0.00025205,3]
[385337676,1757784658942,-408.48682547,0.00025205,3]
[385337677,1757784658953,-480.0,0.00025205,3]
[385337678,1757784658963,-480.0,0.00025205,3]
[385337679,1757784658972,-480.0,0.00025205,3]
[385337680,1757784658982,-481.68068924,0.00025205,3]
[385337681,1757784658992,-515.04,0.00025205,3]
[385337682,1757784659002,-480.0,0.00025205,3]
[385337683,1757784659011,-392.20297653,0.00025205,3]
[385337684,1757784659022,-480.0,0.00025205,3]
[385337685,1757784659031,-480.0,0.00025205,3]
[385337686,1757784659041,-714.11,0.00025205,3]
[385337687,1757784659050,-480.0,0.00025205,3]
[385337688,1757784659059,-480.0,0.00025205,3]
[385337689,1757784659069,-503.97218212,0.00025205,3]
[385337690,1757784659080,-480.0,0.00025205,3]
[385337691,1757784659090,-480.0,0.00025205,3]
[385337692,1757784659099,-480.0,0.00025205,3]
[385337693,1757784659109,-480.0,0.00025205,3]
[385337694,1757784659119,-480.0,0.00025205,3]
[385337695,1757784659129,-480.0,0.00025205,3]
[385337696,1757784659139,-480.0,0.00025205,3]
[385337697,1757784659148,-480.0,0.00025205,3]
[385337698,1757784659158,-480.0,0.00025205,3]
[385337699,1757784659168,-480.0,0.00025205,3]
[385337700,1757784659316,-480.0,0.00025205,3]
[385337701,1757784659326,-480.0,0.00025205,3]
[385337702,1757784659335,-480.0,0.00025205,3]
[385337703,1757784659344,-480.0,0.00025205,3]
[385337704,1757784659353,-480.0,0.00025205,3]
[385337705,1757784659363,-480.0,0.00025205,3]
[385337706,1757784659372,-179.63848077,0.00025205,3]
[385337707,1757784659385,-480.0,0.00025205,3]
[385337708,1757784659402,-480.0,0.00025205,3]
[385337709,1757784659411,-480.0,0.00025205,3]
[385337710,1757784659420,-480.0,0.00025205,3]
[385337711,1757784659429,-480.0,0.00025205,3]
[385337712,1757784659439,-480.0,0.00025205,3]
[385337713,1757784659449,-480.0,0.00025205,3]
[385337714,1757784659458,-480.0,0.00025205,3]
[385337715,1757784659467,-480.0,0.00025205,3]
[385337716,1757784659487,-308.33,0.00025205,3]
[385337717,1757784659502,-480.0,0.00025205,3]
[385337718,1757784659512,-1194.44,0.00025205,3]
[385337719,1757784659522,-480.0,0.00025205,3]
[385337720,1757784659532,-480.0,0.00025205,3]
[385337721,1757784659541,-480.0,0.00025205,3]
[385337722,1757784659551,-480.0,0.00025205,3]
[385337723,1757784659562,-806.61,0.00025205,3]
[385337724,1757784659571,-963.48,0.00025205,3]
[385337725,1757784659582,-480.0,0.00025205,3]
[385337726,1757784659591,-480.0,0.00025205,3]
[385337727,1757784659600,-480.0,0.00025205,3]
[385337728,1757784659609,-587.53,0.00025205,3]
[385337729,1757784659619,-480.0,0.00025205,3]
[385337730,1757784659627,-480.0,0.00025205,3]
[385337731,1757784659636,-480.0,0.00025205,3]
[385337732,1757784659646,-1474.24,0.00025205,3]